bitfinex-derivatives/quotes_ETHF0:USTF0_20250410
["timestamp","ask_amount","ask_price","bid_price","bid_amount"]
[1744306567999,12.87417009,1500.5,1500.4,1.33388]
[1744306568204,12.87417009,1500.5,1500.4,7.28288]
[1744306568392,12.87417009,1500.5,1500.4,12.28288]
[1744306568803,12.87417009,1500.5,1500.4,7.28288]
[1744306569896,0.00997539,1500.6,1500.5,1.33379]
[1744306570199,0.00997539,1500.6,1500.5,16.00329]
[1744306570701,12.87417009,1501.0,1500.9,1.33344]
[1744306570894,12.87417009,1501.0,1500.9,4.54124]
[1744306571595,12.87417009,1501.0,1500.9,1.33344]
[1744306571795,1.33344,1500.9,1500.8,6.5487]
[1744306571995,6.3697,1500.9,1500.8,1.33352]
[1744306572500,12.87417009,1501.0,1500.9,1.33344]
[1744306572802,19.27607009,1501.0,1500.9,1.33344]
[1744306572999,20.60942009,1501.0,1500.9,1.33344]
[1744306573198,20.60942009,1501.0,1500.6,5.992]
[1744306573199,1.33357,1500.8,1500.6,5.992]
[1744306573400,1.33352,1500.8,1500.7,1.33361]
[1744306573904,8.2078,1500.8,1500.6,1.33369]
[1744306574098,7.7356,1500.7,1500.5,6.24671]
[1744306574596,1.33376,1500.6,1500.5,1.33377]
[1744306574805,7.73566,1500.6,1500.5,1.33377]
[1744306575198,6.4019,1500.6,1500.5,1.33377]
[1744306575394,7.7356,1500.6,1500.5,1.33377]
[1744306575594,7.73568,1500.6,1500.5,1.33379]
[1744306575797,1.33385,1500.5,1500.3,9.35657539]
[1744306576105,1.33368,1500.7,1500.3,14.02538539]
[1744306576307,6.035,1500.6,1500.5,1.33379]
[1744306576599,6.035,1500.6,1500.5,7.47259]
[1744306577301,7.3687,1500.6,1500.5,1.33379]
[1744306577503,6.035,1500.6,1500.5,1.33379]
[1744306577698,3.2078,1501.0,1500.5,14.1998]
[1744306577904,0.00997539,1501.1,1501.0,1.33335]
[1744306578800,0.00997539,1501.1,1501.0,12.72315]
[1744306579201,5.39e-06,1501.1,1501.0,25.67915]
[1744306579402,5.39e-06,1501.1,1501.0,31.67115]
[1744306579603,12.87417009,1501.5,1501.4,1.33299]
[1744306579908,4.15141075,1501.5,1501.4,10.53279]
[1744306580207,15.64561235,1502.1,1502.0,1.33246]
[1744306580715,14.76524036,1502.3,1502.0,5.49017744]
[1744306581007,5.98403231,1502.3,1502.2,4.54008]
[1744306581200,5.98403231,1502.3,1502.2,9.54008]
[1744306581394,5.98403231,1502.3,1502.2,10.66548]
[1744306581801,5.98403231,1502.3,1502.2,7.45768]
[1744306581997,6.29187539,1502.4,1502.3,1.33219]
[1744306582304,0.00997539,1502.4,1502.3,1.33219]
[1744306583109,5.39e-06,1502.4,1502.3,12.32419]
[1744306583312,5.39e-06,1502.4,1502.3,12.48119]
[1744306584601,5.1473,1503.1,1502.7,1.33184]
[1744306584914,6.1812,1503.0,1502.9,1.33164]
[1744306586213,1.33166,1502.9,1502.8,0.00997539]
[1744306586606,17.34726,1502.9,1502.8,0.00997539]
[1744306587013,25.29626,1502.9,1502.8,0.00997539]
[1744306587514,1.332,1502.6,1502.4,1.33208]
[1744306587712,6.2361,1502.5,1502.2,9.5981]
[1744306587913,6.2361,1502.5,1502.4,1.3321]
[1744306589815,6.2361,1502.5,1502.4,7.7224]
[1744306590416,3.2078,1502.7,1502.6,1.33193]
[1744306591209,6.2361,1502.8,1502.7,1.33184]
[1744306591419,0.00997539,1503.1,1503.0,1.33157]
[1744306591911,0.00997539,1503.1,1503.0,9.53937]
[1744306592107,8.392,1503.5,1503.0,3.2078]
[1744306592311,11.71996,1503.5,1503.0,3.2078]
[1744306592514,1.33134,1503.3,1503.1,1.33142]
[1744306592715,7.35249,1503.2,1503.0,1.3315]
[1744306592912,6.0211,1503.2,1503.1,1.33148]
[1744306593616,0.00997539,1503.3,1503.2,1.33139]
[1744306593820,0.00997539,1503.3,1503.2,7.25979]
[1744306596424,1.34128539,1503.3,1503.2,7.25979]
[1744306596619,1.33139,1503.2,1503.1,5.992]
[1744306596813,1.33148,1503.1,1503.0,0.00997539]
[1744306597416,1.31693933,1503.1,1503.0,0.00997539]
[1744306597816,1.33184,1502.7,1502.6,1.3319]
[1744306598014,3.2078,1502.9,1502.5,9.5656]
[1744306598318,1.33184,1502.7,1502.6,1.33184]
[1744306598523,1.33193,1502.6,1502.5,4.53976]
[1744306598720,1.33193,1502.6,1502.3,6.3578]
[1744306598721,3.2078,1502.6,1502.3,6.3578]
[1744306598918,5.9913,1502.5,1502.3,3.2078]
[1744306599124,1.33175,1502.8,1502.7,1.33176]
[1744306599428,5.9913,1502.8,1502.7,1.33176]
[1744306600025,5.9913,1502.8,1502.7,7.50916]
[1744306600221,13.2521,1503.2,1502.7,14.50698]
[1744306600421,1.3316,1503.0,1502.7,6.1774]
[1744306600622,6.2158,1503.1,1502.7,9.50698]
[1744306600820,6.2158,1503.1,1502.7,6.1774]
[1744306601219,6.2158,1503.1,1503.0,1.33157]
[1744306601418,0.00997539,1503.3,1503.2,1.33139]
[1744306601617,0.00997539,1503.3,1503.2,4.53919]
[1744306601824,0.00997539,1503.3,1503.2,9.53919]
[1744306602423,3.2078,1504.2,1503.9,1.33078]
[1744306602619,1.33069,1504.0,1503.9,1.33078]
[1744306602824,9.4236,1504.2,1503.9,1.33075]
[1744306603126,3.2078,1504.0,1503.6,1.33102]
[1744306603317,1.33088,1503.8,1503.5,14.6059]
[1744306603522,1.33088,1503.8,1503.6,0.00997539]
[1744306603720,5.9776,1503.7,1503.6,1.34101539]
[1744306604021,3.21777539,1504.0,1503.6,1.34101539]
[1744306604022,0.00997539,1504.0,1503.6,3.33751539]
[1744306604217,0.00997539,1504.0,1503.9,4.53858]
[1744306604421,5.39e-06,1504.0,1503.9,15.53058]
[1744306604621,9.1854,1504.5,1503.9,20.491]
[1744306604819,9.1854,1504.5,1503.9,12.82594]
[1744306605122,9.1854,1504.5,1504.1,1.33051]
[1744306605123,1.33042,1504.3,1504.1,1.33051]
[1744306605327,1.33063,1504.1,1503.9,9.499]
[1744306605520,5.9776,1504.2,1504.1,1.3306]
[1744306605721,5.98424489,1504.2,1504.1,1.3306]
[1744306606023,0.00664489,1504.2,1504.1,1.3306]
[1744306607329,1.33715489,1504.2,1504.1,1.3306]
[1744306607527,8.21444489,1504.2,1503.9,6.2912]
[1744306607726,1.33069,1504.0,1503.7,5.992]
[1744306607919,5.8908,1504.1,1504.0,1.33069]
[1744306608226,5.8908,1504.1,1503.9,1.33071]
[1744306608432,7.21178271,1504.1,1503.9,1.33071]
[1744306608633,3.2078,1504.0,1503.7,6.0955]
[1744306608933,1.33085,1503.9,1503.7,7.42645]
[1744306609132,1.33086,1503.8,1503.7,6.0955]
[1744306609335,1.33086,1503.9,1503.7,7.42645]
[1744306609520,1.33087,1503.8,1503.7,1.33094]
[1744306609723,6.54075489,1504.2,1503.6,0.00997539]
[1744306609924,1.33072,1504.0,1503.8,1.3308]
[1744306610324,3.2078,1504.0,1503.7,7.18258]
[1744306610530,1.33086,1503.8,1503.7,1.33088]
[1744306610734,1.33095,1503.7,1503.6,0.00997539]
[1744306611126,6.33095,1503.7,1503.6,0.00997539]
[1744306611626,12.28125,1503.7,1503.6,0.00997539]
[1744306612234,5.9503,1503.7,1503.6,1.34101539]
[1744306612625,7.28125,1503.7,1503.6,0.00997539]
[1744306613031,5.9503,1503.7,1503.6,1.34101539]
[1744306613235,7.28125,1503.7,1503.6,0.00997539]
[1744306614132,12.28125,1503.7,1503.6,0.00997539]
[1744306615423,1.33165,1503.0,1502.9,3.2078]
[1744306615730,4.53922,1503.2,1503.1,1.33148]
[1744306615929,4.53922,1503.2,1502.9,1.33164]
[1744306615930,3.2078,1503.2,1502.9,1.33164]
[1744306616234,6.53692,1503.0,1502.5,15.41760042]
[1744306616432,1.33193,1502.6,1502.5,11.66918042]
[1744306616633,1.33193,1502.6,1502.5,10.33720042]
[1744306616833,7.29297,1502.7,1502.6,1.33193]
[1744306617030,1.33189,1502.7,1502.5,10.33720042]
[1744306617231,1.33189,1502.7,1502.6,6.4349]
[1744306617431,10.5007,1502.8,1502.7,1.33184]
[1744306617730,10.5007,1502.8,1502.6,6.4349]
[1744306617731,10.50067,1502.8,1502.6,6.4349]
[1744306618036,1.33193,1502.6,1502.5,10.33720042]
[1744306618339,17.44973,1502.6,1502.5,10.33720042]
[1744306618831,17.44973,1502.6,1502.5,3.67200042]
[1744306619031,23.48613,1502.6,1502.5,3.67200042]
[1744306619736,23.48613,1502.6,1502.4,15.31407284]
[1744306619737,1.33202,1502.5,1502.4,15.31407284]
[1744306620034,7.36842,1502.5,1502.4,15.31407284]
[1744306620338,7.36842,1502.5,1502.4,0.00997539]
[1744306620339,12.36842,1502.5,1502.4,0.00997539]
[1744306620634,1.33272,1501.7,1501.6,15.30409745]
[1744306620931,1.3326,1501.9,1501.6,15.30409745]
[1744306621231,3.2078,1501.9,1501.7,7.6039]
[1744306621531,1.33272,1501.7,1501.6,15.30409745]
[1744306621727,1.33272,1501.7,1501.6,15.31407284]
[1744306621924,4.54052,1501.7,1501.6,15.31407284]
[1744306622237,12.45452,1501.7,1501.6,15.31407284]
[1744306623731,23.30652,1501.7,1501.6,11.98980284]
[1744306624038,23.30652,1501.7,1501.6,8.22573284]
[1744306624232,12.45452,1501.7,1501.6,0.00997539]
[1744306625432,17.45452,1501.7,1501.6,0.00997539]
[1744306625833,12.45452,1501.7,1501.6,0.00997539]
[1744306626233,4.54052,1501.7,1501.6,0.00997539]
[1744306627042,9.54052,1501.7,1501.6,0.00997539]
[1744306627241,4.54052,1501.7,1501.6,0.00997539]
[1744306627443,9.54052,1501.7,1501.6,0.00997539]
[1744306628037,4.54052,1501.7,1501.6,0.00997539]
[1744306628535,3.2078,1501.7,1501.6,1.34278539]
[1744306628736,4.54052,1501.7,1501.6,0.00997539]
[1744306629035,6.3129,1501.8,1501.7,1.33272]
[1744306629244,0.00997539,1502.0,1501.9,1.33255]
[1744306629844,0.00997539,1502.0,1501.9,9.54035]
[1744306630042,3.2078,1502.5,1502.4,1.3321]
[1744306630246,3.2078,1502.5,1502.0,6.53892]
[1744306630544,3.2078,1502.5,1502.3,1.33219]
[1744306630545,6.3674,1502.4,1502.3,1.33219]
[1744306630743,3.2078,1502.9,1502.7,1.33182]
[1744306630939,3.2078,1503.1,1502.9,1.33164]
[1744306631143,0.00997539,1503.0,1502.9,1.33166]
[1744306631341,6.37737539,1503.0,1502.9,1.33166]
[1744306631543,1.33175,1502.8,1502.7,6.1334]
[1744306631736,4.53959,1502.8,1502.6,1.34190539]
[1744306631942,1.33184,1502.7,1502.6,1.34190539]
[1744306632550,7.69924,1502.7,1502.6,0.00997539]
[1744306633048,3.21777539,1503.0,1502.9,1.33166]
[1744306633343,0.00997539,1503.0,1502.9,1.33166]
[1744306633544,0.00997539,1503.0,1502.7,6.0114]
[1744306633545,1.34158539,1503.0,1502.7,6.0114]
[1744306633739,1.33175,1502.8,1502.7,6.0114]
[1744306633936,1.33175,1502.8,1502.6,0.00997539]
[1744306633937,1.33184,1502.7,1502.6,0.00997539]
[1744306634137,7.11564,1502.7,1502.6,0.00997539]
[1744306634442,5.7838,1502.7,1502.6,1.34190539]
[1744306634946,0.00997539,1503.0,1502.6,5.00997539]
[1744306635245,1.33172,1502.9,1502.8,1.33175]
[1744306635448,7.12534539,1503.0,1502.8,1.33168]
[1744306635651,7.12534539,1503.0,1502.9,7.34306]
[1744306636055,0.00997539,1503.0,1502.9,7.34306]
[1744306636353,0.00997539,1503.0,1502.9,12.34306]
[1744306636646,0.00997539,1503.0,1502.9,7.34306]
[1744306637351,0.00997539,1503.0,1502.9,12.34306]
[1744306637654,1.33166,1502.9,1502.7,1.33181]
[1744306637849,0.00997539,1503.0,1502.7,5.9189]
[1744306638055,0.00997539,1503.0,1502.9,1.33166]
[1744306638446,0.00997539,1503.0,1502.9,9.53946]
[1744306638646,0.00997539,1503.0,1502.9,20.29656]
[1744306639053,1.3312,1503.5,1503.4,1.33122]
[1744306639455,1.33131,1503.3,1503.2,7.37228]
[1744306639653,1.33153,1503.1,1502.9,4.8382]
[1744306639953,1.33117,1503.5,1503.4,1.33122]
[1744306640147,9.1063,1503.6,1503.0,6.0409]
[1744306640349,1.33135,1503.3,1503.2,6.0409]
[1744306640551,1.33115,1503.5,1503.2,6.0409]
[1744306640752,7.22965,1503.5,1503.4,1.33122]
[1744306640952,1.33129,1503.4,1503.2,6.0409]
[1744306641153,5.8985,1503.5,1503.3,1.33131]
[1744306641346,7.22963,1503.5,1503.4,6.0409]
[1744306641754,3.21444489,1503.6,1503.4,6.0409]
[1744306642155,1.33113,1503.5,1503.4,6.0409]
[1744306642456,7.34343,1503.5,1503.4,6.0409]
[1744306644258,4.54554489,1503.6,1503.4,7.37212]
[1744306644651,4.54555489,1503.6,1503.5,1.33113]
[1744306644954,4.54555489,1503.6,1503.5,7.53793]
[1744306644955,1.33768489,1503.6,1503.5,7.53793]
[1744306645357,0.00664489,1503.6,1503.5,10.74573]
[1744306645752,0.00664489,1503.6,1503.5,7.53793]
[1744306645962,0.00664489,1503.6,1503.5,10.74573]
[1744306646156,0.00664489,1503.6,1503.5,15.74573]
[1744306647063,1.33059,1504.2,1504.1,1.33057]
[1744306647462,1.33049,1504.3,1504.2,1.33051]
[1744306647664,1.33055,1504.2,1504.1,1.33054]
[1744306647864,9.5304,1504.4,1504.2,1.33046]
[1744306647865,1.33047,1504.3,1504.2,1.33046]
[1744306648165,1.33048,1504.3,1504.2,1.33046]
[1744306648461,1.33045,1504.3,1504.2,1.33045]
[1744306648651,1.33035,1504.4,1504.3,1.33034]
[1744306649053,1.33042,1504.3,1504.2,7.50872]
[1744306649453,7.40371,1504.4,1504.3,1.33042]
[1744306649853,1.33041,1504.4,1504.3,1.33042]
[1744306650062,10.61143,1504.5,1504.4,1.33033]
[1744306650363,1.33034,1504.4,1504.3,1.33034]
[1744306650553,7.40361,1504.5,1504.4,1.33033]
[1744306650755,3.2078,1504.9,1504.4,3.2078]
[1744306650966,6.53191,1505.2,1504.6,6.6508]
[1744306651263,3.2078,1505.0,1504.6,6.53317]
[1744306651463,1.32983,1505.0,1504.9,1.32984]
[1744306651762,1.32987,1505.0,1504.9,1.32989]
[1744306651956,1.32989,1504.9,1504.8,1.32991]
[1744306652257,1.32988,1505.0,1504.9,1.32988]
[1744306653160,7.03019,1505.1,1505.0,1.3298]
[1744306654265,6.64678,1505.6,1505.0,8.32451]
[1744306654458,1.32959,1505.3,1505.2,1.32958]
[1744306654654,9.1341,1505.5,1505.1,3.32426]
[1744306654866,1.32934,1505.6,1505.5,1.32936]
[1744306655065,3.2078,1505.7,1505.4,1.32938]
[1744306655066,1.32936,1505.5,1505.4,1.32938]
[1744306655263,1.32934,1505.6,1505.4,1.32938]
[1744306655559,1.3295,1505.4,1505.1,11.0868]
[1744306655871,4.53705,1505.7,1505.3,3.2078]
[1744306656163,3.2078,1505.7,1505.6,1.32927]
[1744306656362,1.32911,1505.8,1505.4,11.72268]
[1744306656563,6.53057,1505.8,1505.5,0.00997539]
[1744306656764,1.32927,1505.6,1505.5,0.00997539]
[1744306657164,4.53707,1505.6,1505.5,0.00997539]
[1744306657361,1.32927,1505.6,1505.5,0.00997539]
[1744306657770,9.53707,1505.6,1505.5,0.00997539]
[1744306658266,1.32971,1505.1,1505.0,5.1325]
[1744306658963,5.0745,1506.1,1505.5,3.2078]
[1744306659167,3.2078,1507.9,1507.0,1.328]
[1744306659359,1.32724,1507.9,1507.8,3.2078]
[1744306659558,17.86375163,1508.2,1507.5,3.2078]
[1744306659756,0.00997539,1507.6,1507.4,0.50100729]
[1744306659962,0.00997539,1507.6,1507.2,0.5005585]
[1744306660167,3.2078,1507.3,1507.2,1.32786]
[1744306660371,3.2078,1507.3,1507.2,1.0]
[1744306660561,3.2078,1507.3,1507.2,2.33783539]
[1744306660760,6.044,1507.5,1507.2,0.00997539]
[1744306660761,3.2078,1507.5,1507.2,0.00997539]
[1744306660960,3.2078,1507.3,1507.2,0.00997539]
[1744306661156,4.53557,1507.3,1507.2,0.00997539]
[1744306661462,9.53557,1507.3,1507.2,0.00997539]
[1744306662065,8.2078,1507.3,1506.4,3.2078]
[1744306662266,3.2078,1506.7,1506.3,1.32858]
[1744306662467,11.0798,1506.9,1506.1,0.83578698]
[1744306662663,5.8458,1507.0,1506.2,8.9503]
[1744306662862,3.2078,1506.9,1506.2,9.78608698]
[1744306663068,5.8458,1506.8,1506.2,9.78608698]
[1744306663371,0.00997539,1506.7,1506.6,1.32839]
[1744306663666,1.32848,1506.6,1506.4,0.00997539]
[1744306663872,6.2436,1506.5,1506.4,0.00997539]
[1744306664261,12.57208,1506.5,1506.4,0.00997539]
[1744306664460,6.2436,1506.5,1506.4,1.33854539]
[1744306664765,0.00997539,1506.7,1506.4,0.00997539]
[1744306665071,3.2078,1506.6,1506.4,0.00997539]
[1744306665373,6.2436,1506.5,1506.4,0.00997539]
[1744306665663,7.57208,1506.5,1506.4,0.00997539]
[1744306665865,11.2436,1506.5,1506.4,0.00997539]
[1744306666069,12.57208,1506.5,1506.4,0.00997539]
[1744306666265,11.2436,1506.5,1506.4,0.00997539]
[1744306666459,6.2436,1506.5,1506.4,1.33854539]
[1744306667372,7.57208,1506.5,1506.4,0.00997539]
[1744306667670,12.57208,1506.5,1506.4,0.00997539]
[1744306668168,1.32901,1505.9,1505.8,20.83117325]
[1744306668364,4.53681,1505.9,1505.8,20.83117325]
[1744306668568,9.53681,1505.9,1505.8,20.83117325]
[1744306668971,9.53681,1505.9,1505.6,1.32923]
[1744306668972,1.32918,1505.8,1505.6,1.32923]
[1744306669167,1.32918,1505.8,1505.3,6.2054]
[1744306669168,4.53702,1505.7,1505.3,6.2054]
[1744306669368,3.2078,1505.5,1504.7,6.53282]
[1744306669566,3.2078,1505.3,1504.9,5.694]
[1744306669861,3.2078,1505.1,1504.8,0.8370877]
[1744306670067,3.32336,1505.6,1504.8,0.8370877]
[1744306670068,4.53729,1505.4,1504.9,0.00997539]
[1744306670370,4.53731,1505.4,1505.2,1.32961]
[1744306670562,6.2498,1505.3,1504.9,5.70397539]
[1744306670765,9.4576,1505.3,1504.9,0.00997539]
[1744306671065,10.78715,1505.3,1504.9,3.33465539]
[1744306671270,9.4576,1505.3,1504.9,3.33465539]
[1744306671570,9.4576,1505.3,1505.2,1.32963]
[1744306671967,9.4576,1505.3,1505.1,1.32965]
[1744306672178,10.78718,1505.3,1505.1,1.32965]
[1744306672471,1.32965,1505.2,1504.9,0.00997539]
[1744306672670,4.53751,1505.1,1504.9,1.33980539]
[1744306672868,7.5768,1505.0,1504.9,0.00997539]
[1744306674068,6.59233532,1505.0,1504.9,0.00997539]
[1744306674270,6.59233532,1505.0,1504.9,5.39e-06]
[1744306675769,7.12347844,1505.0,1504.9,5.39e-06]
[1744306675967,2.12347844,1505.0,1504.9,5.39e-06]
[1744306676166,1.59233532,1505.0,1504.9,5.39e-06]
[1744306678969,6.59233532,1505.0,1504.9,5.39e-06]
[1744306679767,3.32498,1504.8,1504.0,1.33064]
[1744306679970,4.5384,1504.1,1503.9,6.0813]
[1744306680268,3.2078,1504.1,1503.9,6.0813]
[1744306680470,11.0528,1504.3,1504.0,0.84448348]
[1744306680672,4.5384,1504.1,1504.0,0.84448348]
[1744306680977,3.21777539,1504.3,1504.0,0.85445887]
[1744306681173,0.00997539,1504.3,1504.2,1.33051]
[1744306681474,0.00997539,1504.3,1504.2,8.25629348]
[1744306681671,0.00997539,1504.3,1504.2,13.25629348]
[1744306681872,0.00997539,1504.3,1504.2,16.46409348]
[1744306682577,0.00997539,1504.3,1504.2,13.25629348]
[1744306682973,0.21154236,1504.3,1504.2,13.25629348]
[1744306683674,0.19826661,1504.3,1504.2,13.25629348]
[1744306683973,1.52868661,1504.3,1504.2,8.25629348]
[1744306684374,4.73648661,1504.3,1504.2,8.25629348]
[1744306684574,4.73648661,1504.3,1504.2,6.92578348]
[1744306684974,4.73648661,1504.3,1504.2,6.0813]
[1744306685173,1.52868661,1504.3,1504.2,6.0813]
[1744306685374,4.73648661,1504.3,1504.2,6.0813]
[1744306685868,1.52868661,1504.3,1504.2,7.41181]
[1744306686070,4.73648661,1504.3,1504.2,7.41181]
[1744306686271,3.40606661,1504.3,1504.2,12.41181]
[1744306686475,0.19826661,1504.3,1504.2,12.41181]
[1744306686675,0.19826661,1504.3,1504.2,13.25421989]
[1744306686878,1.52868661,1504.3,1504.2,8.25421989]
[1744306687079,1.52868661,1504.3,1504.2,6.92370989]
[1744306687279,1.52868661,1504.3,1504.2,8.25421989]
[1744306687475,0.19826661,1504.3,1504.2,13.25421989]
[1744306687878,1.52868661,1504.3,1504.2,12.41181]
[1744306688172,1.52868661,1504.3,1504.2,7.41181]
[1744306688480,1.52868661,1504.3,1504.2,6.0813]
[1744306688778,1.52868661,1504.3,1504.2,7.41181]
[1744306689077,0.19826661,1504.3,1504.2,7.41181]
[1744306689281,0.19826661,1504.3,1504.2,12.41181]
[1744306690380,1.52868661,1504.3,1504.2,6.0813]
[1744306690569,0.19826661,1504.3,1504.2,12.41181]
[1744306690977,0.00997539,1504.4,1504.3,1.33042]
[1744306691179,3.2078,1504.9,1504.8,1.32998]
[1744306691378,3.2078,1504.9,1504.5,3.32562]
[1744306691379,3.2078,1504.9,1504.4,6.3532]
[1744306691580,1.33003,1504.8,1504.7,1.33002]
[1744306691779,4.53776,1504.9,1504.8,7.68318]
[1744306692176,1.32988,1505.0,1504.9,1.32986]
[1744306692484,1.33979539,1505.0,1504.9,1.32989]
[1744306692675,0.00997539,1505.0,1504.9,6.32989]
[1744306692871,0.00997539,1505.0,1504.9,7.68309]
[1744306693075,0.00997539,1505.0,1504.9,13.52797503]
[1744306693471,0.00997539,1505.0,1504.9,8.52797503]
[1744306693677,0.00997539,1505.0,1504.9,16.73577503]
[1744306694083,0.00997539,1505.0,1504.9,8.52797503]
[1744306694483,0.00997539,1505.0,1504.9,7.19808503]
[1744306694484,1.33977539,1505.0,1504.9,7.19808503]
[1744306694983,0.00997539,1505.0,1504.9,8.52797503]
[1744306695591,0.00997539,1505.0,1504.9,7.19808503]
[1744306695881,0.00997539,1505.0,1504.9,8.52797503]
[1744306696081,1.33977539,1505.0,1504.9,7.19808503]
[1744306696278,0.00997539,1505.0,1504.9,8.52797503]
[1744306696979,0.00997539,1505.0,1504.9,16.73577503]
[1744306697284,0.00997539,1505.0,1504.9,8.52797503]
[1744306697486,1.33977539,1505.0,1504.9,7.19808503]
[1744306697687,7.20237539,1505.0,1504.9,7.19808503]
[1744306697989,7.20237539,1505.0,1504.9,0.84488503]
[1744306698190,1.33977539,1505.0,1504.9,0.84488503]
[1744306698491,0.00997539,1505.0,1504.9,8.59047503]
[1744306699294,0.00997539,1505.0,1504.9,13.59047503]
[1744306699480,0.00997539,1505.0,1504.9,16.79827503]
[1744306701389,0.00997539,1505.0,1504.9,11.79827503]
[1744306701577,0.00997539,1505.0,1504.9,8.59047503]
[1744306702084,0.00997539,1505.0,1504.9,16.79827503]
[1744306702278,3.2078,1505.6,1504.9,15.46838503]
[1744306702490,1.32936,1505.5,1505.4,1.32938]
[1744306702793,1.32936,1505.5,1505.2,3.32403]
[1744306702794,1.32932,1505.6,1505.5,1.32936]
[1744306702979,1.32931,1505.6,1505.5,1.32935]
[1744306703185,1.32931,1505.6,1505.5,0.84488503]
[1744306703386,9.53711,1505.6,1505.5,0.84488503]
[1744306704089,15.55341,1505.6,1505.5,0.84488503]
[1744306704292,1.32954,1505.3,1505.2,6.411]
[1744306704493,1.32968,1505.2,1505.0,1.32974]
[1744306704700,1.32971,1505.1,1505.0,6.411]
[1744306704889,1.32971,1505.1,1505.0,7.74073]
[1744306705193,1.32987,1505.0,1504.8,0.00997539]
[1744306705394,7.34617,1505.0,1504.8,6.42097539]
[1744306705692,4.53757,1505.1,1504.9,2.1814315]
[1744306705892,1.3298,1505.0,1504.9,0.8515415]
[1744306706288,7.413,1505.0,1504.9,0.8515415]
[1744306706493,1.32978,1505.1,1505.0,1.32977]
[1744306706702,1.32978,1505.1,1504.9,7.0069415]
[1744306706885,3.2078,1505.3,1504.9,10.3314915]
[1744306707086,1.32955,1505.3,1505.1,1.32965]
[1744306707391,1.32961,1505.3,1505.2,0.8515415]
[1744306707785,1.32953,1505.4,1505.2,0.8515415]
[1744306707994,1.32954,1505.3,1505.2,0.8515415]
[1744306708197,7.41266,1505.4,1505.3,1.32954]
[1744306708494,1.32954,1505.3,1505.2,1.32955]
[1744306708691,4.53734,1505.3,1505.2,6.1554]
[1744306708892,4.53734,1505.3,1505.2,8.33629546]
[1744306709197,9.53734,1505.3,1505.2,0.85126546]
[1744306709393,9.53734,1505.3,1504.8,6.29347539]
[1744306709394,1.32989,1504.9,1504.8,6.29347539]
[1744306709690,1.32989,1504.9,1504.8,0.00997539]
[1744306709891,1.32989,1504.9,1504.8,0.86150073]
[1744306710283,7.45719,1504.9,1504.8,0.86150073]
[1744306710483,12.45719,1504.9,1504.8,7.3e-07]
[1744306710692,25.26219,1504.9,1504.8,7.3e-07]
[1744306710887,27.25711,1504.9,1504.3,6.2835]
[1744306711090,1.33021,1504.6,1504.5,1.33024]
[1744306711284,1.33026,1504.5,1504.4,1.33025]
[1744306711492,1.33042,1504.3,1504.2,15.36325348]
[1744306711691,3.2078,1504.3,1504.2,16.69376348]
[1744306711899,1.33042,1504.3,1504.2,22.97726348]
[1744306712395,7.45771,1504.4,1504.3,1.33042]
[1744306712993,7.45771,1504.4,1504.2,21.64675348]
[1744306713189,7.45771,1504.4,1504.3,1.33042]
[1744306713395,1.33042,1504.3,1504.2,21.64675348]
[1744306713600,3.2078,1504.4,1504.3,1.33042]
[1744306713798,7.60959,1504.5,1504.4,1.33033]
[1744306713992,7.60959,1504.5,1504.3,7.56245]
[1744306713993,1.33024,1504.5,1504.3,7.56245]
[1744306714205,4.53813,1504.4,1504.3,6.2321]
[1744306714400,1.33051,1504.2,1504.1,0.00997539]
[1744306714693,1.33046,1504.3,1504.1,0.00997539]
[1744306714891,4.53831,1504.2,1504.1,0.00997539]
[1744306715090,3.2078,1504.2,1504.1,1.34057539]
[1744306715291,1.33051,1504.2,1504.1,1.34051539]
[1744306715805,9.2014,1504.4,1504.1,0.00997539]
[1744306716097,5.9936,1504.4,1504.3,1.33042]
[1744306716398,1.33035,1504.4,1504.3,1.33036]
[1744306716601,7.3239,1504.5,1504.4,1.33033]
[1744306716898,1.33042,1504.3,1504.2,7.55654]
[1744306717099,1.33042,1504.3,1504.2,6.2261]
[1744306717291,4.53822,1504.4,1504.1,0.00997539]
[1744306717495,3.21777539,1504.6,1504.2,3.32628]
[1744306717688,0.00997539,1504.6,1504.5,1.33024]
[1744306718093,0.00997539,1504.6,1504.5,6.33024]
[1744306718600,0.00997539,1504.6,1504.5,12.58744]
[1744306718797,1.32965,1505.2,1505.1,1.32971]
[1744306718997,1.32975,1505.1,1505.0,1.32975]
[1744306719198,4.53758,1505.1,1504.9,6.2572]
[1744306719394,1.32978,1505.1,1505.0,1.3298]
[1744306719700,10.90719,1505.3,1504.9,9.58193]
[1744306719906,1.3298,1505.0,1504.9,6.26717539]
[1744306720101,4.54740539,1505.2,1505.1,1.32971]
[1744306720305,1.32979,1505.1,1505.0,1.32978]
[1744306720506,3.21777539,1505.2,1504.9,6.26717539]
[1744306720713,6.37977539,1505.2,1505.1,1.32971]
[1744306721006,0.00997539,1505.2,1505.1,1.32971]
[1744306721603,5.39e-06,1505.2,1505.1,15.84431]
[1744306721820,5.39e-06,1505.2,1505.1,21.10021]
[1744306722021,8.9998,1505.8,1505.7,1.32918]
[1744306722214,1.3293,1505.6,1505.4,1.32939]
[1744306722416,3.2078,1505.6,1505.3,6.3068]
[1744306722617,3.2078,1505.4,1505.1,5.2559]
[1744306722817,3.2078,1505.4,1505.3,1.32954]
[1744306723518,8.9998,1505.4,1505.3,1.32954]
[1744306723713,10.32925,1505.4,1505.2,7.63636]
[1744306723919,10.32925,1505.4,1505.1,5.2559]
[1744306723920,1.32954,1505.3,1505.1,1.32967]
[1744306724219,3.2078,1505.5,1505.4,1.32945]
[1744306724423,3.2078,1505.7,1505.6,1.32927]
[1744306724620,3.2078,1505.9,1505.8,1.32907]
[1744306724811,5.9902,1505.9,1505.8,1.32907]
[1744306725017,3.2078,1506.1,1506.0,1.32892]
[1744306725522,9.53669,1506.1,1505.9,7.55846]
[1744306725721,3.2078,1506.3,1506.2,1.32874]
[1744306726314,9.198,1506.3,1506.2,1.32874]